bitfinex/quotes_ETHUSD_20250824
["timestamp","ask_amount","ask_price","bid_price","bid_amount"]
[1756058601526,3.7586,4909.9,4909.8,0.02]
[1756058601726,3.7586,4909.9,4909.8,0.3284]
[1756058601930,3.7586,4909.9,4909.8,0.7575]
[1756058602133,3.7586,4909.9,4909.8,0.3284]
[1756058602426,3.7586,4909.9,4909.8,0.02]
[1756058602730,4.89356,4909.9,4909.8,0.02]
[1756058603048,4.13346,4909.9,4909.8,0.02]
[1756058603248,3.7576,4909.9,4909.8,0.02]
[1756058604550,4.5167,4909.9,4909.8,0.02]
[1756058606124,4.0713,4909.9,4909.8,0.02]
[1756058607057,4.5167,4909.9,4909.8,0.02]
[1756058607423,5.1767,4909.9,4909.8,0.02]
[1756058607624,6.18367,4909.9,4909.8,0.02]
[1756058607857,6.18367,4909.9,4909.8,0.024]
[1756058608264,6.18467,4909.9,4909.8,0.024]
[1756058610861,6.08307,4909.9,4909.8,0.024]
[1756058611166,6.18467,4909.9,4909.8,0.024]
[1756058611370,5.52467,4909.9,4909.8,0.024]
[1756058612754,6.18467,4909.9,4909.8,0.024]
[1756058613472,1.42327,4909.9,4909.8,0.024]
[1756058613682,5.52267,4909.9,4909.8,0.024]
[1756058615161,5.07727,4909.9,4909.8,0.024]
[1756058615481,4.76357,4909.9,4909.8,0.024]
[1756058618279,5.07727,4909.9,4909.8,0.024]
[1756058618484,5.52267,4909.9,4909.8,0.024]
[1756058619492,4.76357,4909.9,4909.8,0.024]
[1756058620082,4.76357,4909.9,4909.8,0.3148]
[1756058620379,3.7566,4909.9,4909.8,0.3148]
[1756058620583,4.0703,4909.9,4909.8,0.024]
[1756058620748,4.5157,4909.9,4909.8,0.024]
[1756058624494,5.1757,4909.9,4907.8,0.0021]
[1756058624693,0.1016,4909.6,4907.8,0.0021]
[1756058624982,0.1016,4907.9,4906.8,0.02]
[1756058625199,0.4454,4908.9,4907.8,0.2908]
[1756058625359,0.1016,4907.9,4907.8,0.2908]
[1756058625562,5.3186,4907.9,4906.8,0.02]
[1756058625865,0.1016,4907.1,4906.8,0.02]
[1756058626068,3.651,4907.0,4906.8,0.02]
[1756058626254,1.566,4906.9,4906.8,0.02]
[1756058626667,1.566,4906.9,4906.8,0.3108]
[1756058627195,1.566,4906.9,4906.8,0.6655]
[1756058631283,1.566,4906.9,4906.8,3.6655]
[1756058631486,3.651,4907.0,4906.8,5.72242423]
[1756058631660,3.651,4907.0,4906.8,5.36772423]
[1756058631869,3.651,4907.0,4906.9,0.3547]
[1756058632190,3.651,4907.0,4906.9,0.6641]
[1756058632361,3.651,4907.0,4906.9,4.95083893]
[1756058632686,3.651,4907.0,4906.9,1.95083893]
[1756058632895,3.651,4907.0,4906.9,0.3094]
[1756058633473,3.649,4907.0,4906.9,0.6641]
[1756058634083,3.649,4907.0,4906.9,0.3094]
[1756058634794,3.649,4907.0,4906.9,0.6641]
[1756058636501,3.649,4907.0,4906.9,0.3094]
[1756058637492,3.649,4907.0,4906.8,0.02]
[1756058638464,3.649,4907.0,4906.9,0.3094]
[1756058641411,3.649,4907.0,4906.8,1.02]
[1756058641829,3.649,4907.0,4906.8,1.024]
[1756058642018,3.649,4907.0,4906.9,0.3094]
[1756058642217,3.649,4907.0,4906.8,1.024]
[1756058642391,0.3144,4906.9,4906.8,1.024]
[1756058642721,0.7619,4906.9,4906.8,1.024]
[1756058643288,1.21315,4906.9,4906.8,1.024]
[1756058646115,0.1016,4906.9,4906.8,1.3334]
[1756058646304,3.649,4907.0,4906.8,1.3334]
[1756058647181,3.649,4907.0,4906.8,1.6881]
[1756058647394,3.649,4907.0,4906.8,1.024]
[1756058647687,0.3144,4906.9,4906.8,1.024]
[1756058648791,0.7619,4906.9,4906.8,1.024]
[1756058649006,3.649,4907.0,4906.8,1.024]
[1756058649545,1.566,4907.7,4906.9,0.4118]
[1756058649687,3.644,4907.6,4907.2,0.1016]
[1756058649883,3.644,4907.6,4907.2,0.4563]
[1756058650111,3.644,4907.6,4907.5,0.3094]
[1756058650299,3.644,4907.6,4907.5,0.7657]
[1756058650495,0.001,4907.9,4907.6,3.0]
[1756058650713,3.643,4907.8,4907.6,0.3547]
[1756058651026,0.001,4907.9,4907.8,0.1016]
[1756058651229,3.643,4908.4,4907.8,0.87638197]
[1756058651521,3.643,4908.7,4908.1,3.0]
[1756058651690,3.643,4908.7,4908.6,0.3094]
[1756058651889,0.021,4908.8,4908.6,0.76720562]
[1756058652114,0.021,4908.8,4908.7,0.3547]
[1756058652312,0.021,4908.8,4908.7,0.6641]
[1756058652513,0.021,4908.8,4908.7,19.06178727]
[1756058656125,0.001,4909.9,4909.6,3.0]
[1756058656330,0.001,4909.9,4909.7,0.3094]
[1756058656631,0.001,4909.9,4909.7,0.7657]
[1756058657493,0.001,4909.9,4909.7,0.847275]
[1756058657692,0.001,4909.9,4909.7,5.75955223]
[1756058658126,0.001,4909.9,4909.7,5.40485223]
[1756058660127,0.001,4909.9,4909.7,5.35485223]
[1756058660716,0.001,4909.9,4909.7,3.183175]
[1756058660939,0.7819,4909.8,4909.7,0.183175]
[1756058661216,5.9869,4909.8,4909.7,0.081575]
[1756058661413,5.9869,4909.8,4909.3,0.1016]
[1756058661620,5.5394,4909.8,4909.3,0.1016]
[1756058661933,0.4475,4909.7,4909.3,0.1016]
[1756058662131,5.225,4909.8,4909.3,0.1016]
[1756058662358,0.4656,4909.6,4909.3,0.1016]
[1756058662725,0.4656,4909.5,4909.3,0.1016]
[1756058664103,0.3121,4909.4,4909.3,0.1016]
[1756058664502,0.7777,4909.4,4909.3,0.1016]
[1756058664698,0.7777,4909.4,4908.8,0.183175]
[1756058664902,0.5672,4909.3,4908.6,0.1016]
[1756058665311,0.3121,4908.7,4908.6,0.1016]
[1756058665512,0.7777,4908.7,4908.6,0.1016]
[1756058666043,3.636,4908.8,4908.6,0.1016]
[1756058667426,0.3121,4908.7,4908.6,0.1016]
[1756058668103,3.636,4908.8,4908.6,0.1016]
[1756058668405,3.636,4908.8,4908.6,0.3872]
[1756058668740,3.636,4908.8,4908.6,0.72592]
[1756058669115,3.636,4908.8,4908.6,0.44032]
[1756058669311,3.635,4909.2,4908.8,3.0]
[1756058669543,1.566,4909.6,4909.1,0.2856]
[1756058669711,5.201,4909.6,4909.5,0.1016]
[1756058670512,5.9787,4909.6,4909.5,0.1016]
[1756058670740,5.9787,4909.6,4908.2,3.0]
[1756058671041,5.9787,4909.6,4909.2,0.1016]
[1756058671742,5.201,4909.6,4909.2,0.1016]
[1756058672420,3.635,4909.6,4909.5,0.3872]
[1756058672945,0.02,4909.8,4909.5,0.3872]
[1756058673111,0.02,4909.8,4909.6,2.17096973]
[1756058673309,0.02,4909.8,4909.7,0.2856]
[1756058673506,0.001,4909.9,4909.7,3.5903]
[1756058673745,0.001,4909.9,4909.8,0.1016]
[1756058673927,0.001,4909.9,4909.8,0.6919]
[1756058674138,0.001,4910.4,4909.8,1.36759787]
[1756058674355,0.002,4913.3,4910.8,17.72111788]
[1756058674654,0.002,4913.3,4912.7,18.2754973]
[1756058674810,0.002,4913.3,4912.7,18.5610973]
[1756058675220,0.002,4913.3,4912.7,18.6426173]
[1756058675430,0.002,4913.3,4912.7,3.37451556]
[1756058675612,0.4676,4913.3,4912.7,3.08152]
[1756058676851,0.002,4913.3,4912.7,4.02712]
[1756058677174,0.4656,4914.0,4912.7,4.02712]
[1756058677175,0.022,4914.8,4912.8,5.9643]
[1756058677466,0.02,4915.8,4914.8,3.66]
[1756058677610,0.02,4915.8,4915.7,15.9354973]
[1756058677815,0.02,4915.8,4915.7,19.2210973]
[1756058678011,0.02,4915.8,4915.7,3.66]
[1756058679215,0.7977,4915.8,4915.7,3.0]
[1756058679855,0.7977,4915.8,4915.7,3.18406435]
[1756058680213,0.02,4915.8,4915.7,3.18406435]
[1756058680560,0.7977,4915.8,4915.7,3.18406435]
[1756058681115,0.02,4915.8,4915.7,3.0]
[1756058681418,0.02,4915.8,4915.7,4.42939403]
[1756058681833,0.021,4916.8,4915.9,0.66]
[1756058682031,0.021,4916.8,4916.7,0.66]
[1756058682348,0.021,4916.8,4916.7,0.8433998]
[1756058682952,0.021,4916.8,4916.7,1.1289998]
[1756058683149,0.021,4916.8,4916.7,5.40767971]
[1756058683336,0.021,4916.8,4916.7,3.8433998]
[1756058684117,0.021,4916.8,4916.7,4.1289998]
[1756058684313,0.021,4916.8,4916.7,4.2305998]
[1756058684871,0.021,4916.8,4916.7,3.9449998]
[1756058685162,0.021,4916.8,4916.7,4.1944998]
[1756058685517,0.021,4916.8,4916.7,4.19391623]
[1756058685719,0.021,4916.8,4916.7,6.41324614]
[1756058686150,0.021,4916.8,4916.7,4.19391623]
[1756058686840,0.021,4916.8,4916.7,3.7616]
[1756058687259,0.3331,4916.8,4916.7,3.7616]
[1756058687466,0.7987,4916.8,4916.7,3.7616]
[1756058688045,0.021,4916.8,4916.7,3.7616]
[1756058688373,0.021,4916.8,4916.7,5.35024223]
[1756058690248,0.021,4916.8,4916.7,3.7616]
[1756058691056,0.021,4916.8,4916.7,4.0472]
[1756058692450,0.021,4916.8,4916.7,3.7616]
[1756058693198,0.3091,4916.8,4916.7,3.7616]
[1756058693393,0.7619,4916.8,4916.7,3.7616]
[1756058694058,0.7619,4916.8,4916.7,3.1016]
[1756058694252,0.7619,4916.8,4916.7,0.1016]
[1756058694575,0.7619,4916.8,4916.5,0.1016]
[1756058694775,0.5544,4916.7,4916.0,0.1016]
[1756058695087,1.564,4916.6,4916.0,0.1016]
[1756058695475,0.2881,4916.1,4916.0,0.1016]
[1756058695988,0.7409,4916.1,4916.0,0.1016]
[1756058696882,0.8425,4916.1,4914.9,0.611222]
[1756058697095,0.4528,4916.0,4915.4,0.1016]
[1756058697300,0.2881,4915.5,4915.4,0.1016]
[1756058697475,0.7409,4915.5,4914.9,0.611222]
[1756058697806,1.563,4915.7,4915.0,0.18316999]
[1756058697993,1.563,4915.7,4915.4,0.1016]
[1756058698190,0.4528,4915.6,4914.8,0.021]
[1756058698700,1.563,4915.7,4915.4,0.1016]
[1756058699276,1.563,4915.7,4915.0,0.66]
[1756058699476,1.563,4916.4,4915.7,0.66]
[1756058699803,1.563,4916.4,4916.0,0.1016]
[1756058700006,0.2881,4916.1,4916.0,0.1016]
[1756058700407,0.8425,4916.1,4915.3,0.1016]
[1756058700722,0.4528,4916.0,4915.3,0.1016]
[1756058701717,0.4528,4916.0,4914.5,0.66]
[1756058701718,0.2881,4915.4,4913.8,0.02]
[1756058701883,10.073,4915.3,4913.8,0.02]
[1756058702114,0.2881,4913.9,4913.8,0.02]
[1756058702323,1.8511,4913.9,4913.8,0.02]
[1756058702534,2.4055,4913.9,4913.8,0.02]
[1756058704236,2.9055,4913.9,4913.8,0.02]
[1756058704433,3.19605,4913.9,4913.8,0.02]
[1756058706335,6.81905,4913.9,4913.8,0.02]
[1756058707439,6.71745,4913.9,4913.8,0.02]
[1756058707606,6.5285,4913.9,4913.8,0.02]
[1756058708007,1.5285,4913.9,4913.8,0.02]
[1756058708247,3.3806,4913.9,4913.8,0.02]
[1756058708540,3.279,4913.9,4913.8,0.02]
[1756058708841,3.3806,4913.9,4913.8,0.021]
[1756058710441,4.07456,4913.9,4913.8,0.021]
[1756058711914,2.54606,4913.9,4913.8,0.021]
[1756058712127,6.27166,4913.9,4913.8,0.021]
[1756058713288,5.91576,4913.9,4913.8,0.021]
[1756058713837,5.5777,4913.9,4913.8,0.021]
[1756058714343,5.2896,4913.9,4913.8,0.021]
[1756058716578,5.5777,4913.9,4913.8,0.021]
[1756058716737,5.9336,4913.9,4913.8,0.021]
[1756058717637,5.832,4913.9,4913.8,0.021]
[1756058717833,6.1609,4913.9,4913.8,0.021]
[1756058718173,5.2896,4913.9,4913.8,0.021]
[1756058719370,5.2896,4913.9,4913.8,0.3182]
[1756058719586,5.2896,4913.9,4913.8,0.7499]
[1756058720070,5.2896,4913.9,4913.8,0.021]
[1756058720367,5.4824,4913.9,4913.8,0.021]
[1756058720567,6.03064,4913.9,4913.8,0.021]
[1756058720977,5.83784,4913.9,4913.8,0.021]
[1756058721167,5.2896,4913.9,4913.8,0.021]
[1756058721362,5.2896,4913.9,4913.8,0.3182]
[1756058721572,5.2896,4913.9,4913.8,0.7499]
[1756058721880,5.187,4913.9,4913.8,0.7499]
[1756058722967,3.623,4913.9,4913.8,1.4099]
[1756058723168,3.623,4914.3,4913.9,0.66]
[1756058723370,3.623,4914.4,4914.3,0.66]
[1756058723570,1.564,4915.6,4914.4,0.66]
[1756058723771,3.623,4915.5,4914.5,0.4408]
[1756058724083,3.623,4915.5,4914.6,0.1016]
[1756058724280,0.1016,4915.2,4914.5,0.4408]
[1756058724602,3.623,4915.5,4914.6,0.4408]
[1756058724942,0.1016,4915.0,4914.6,0.4408]
[1756058725254,3.623,4914.9,4914.6,0.4408]
[1756058725454,3.623,4914.9,4914.1,0.1016]
[1756058725686,3.99546,4914.9,4914.1,0.1016]
[1756058726255,3.99546,4914.9,4913.8,0.4618]
[1756058726464,0.1016,4914.4,4913.8,0.4618]
[1756058726752,5.187,4914.3,4913.8,0.4618]
[1756058727892,5.187,4914.3,4913.9,0.4408]
[1756058728087,5.187,4914.3,4913.8,0.021]
[1756058728294,5.187,4914.3,4914.2,0.3066]
[1756058728587,5.187,4914.3,4914.2,0.7474]
[1756058728943,3.623,4914.3,4914.2,0.7474]
[1756058730386,3.623,4914.3,4914.2,1.509]
[1756058730573,3.622,4914.6,4914.3,0.66]
[1756058730743,3.622,4914.6,4914.5,0.9666]
[1756058730945,3.622,4914.6,4914.5,1.509]
[1756058731183,3.622,4914.9,4914.5,1.509]
[1756058731388,3.622,4914.9,4914.6,0.4408]
[1756058731572,3.622,4914.9,4914.8,0.4082]
[1756058731996,3.622,4914.9,4914.8,0.849]
[1756058732498,3.622,4914.9,4914.8,1.6599]
[1756058732810,3.622,4915.3,4914.9,0.66]
[1756058733107,3.622,4915.3,4915.2,0.9666]
[1756058733278,0.002,4915.4,4915.3,0.66]
[1756058733460,0.002,4915.4,4915.3,1.4074]
[1756058733797,0.002,4915.4,4915.3,6.0106367]
[1756058737286,0.002,4915.4,4915.3,21.23267649]
[1756058738010,1.6656,4916.9,4915.5,0.66]
[1756058738169,3.62,4916.7,4916.4,0.9666]
[1756058738369,3.62,4916.7,4915.5,0.66]
[1756058738599,0.3963,4916.4,4916.0,0.1016]
[1756058738909,0.004,4916.4,4916.0,0.1016]
[1756058739117,0.1056,4916.4,4915.7,0.1016]
[1756058740724,0.1056,4916.4,4915.5,0.1016]
[1756058741097,3.62,4916.3,4915.5,0.1016]
[1756058742718,0.004,4915.6,4915.5,0.1016]
[1756058743015,3.623,4915.6,4915.0,0.1016]
[1756058744413,3.623,4915.6,4914.6,3.0]
[1756058744414,4.0695,4915.6,4914.5,15.22203979]
[1756058744618,0.1016,4915.3,4914.6,0.1016]
[1756058744816,3.619,4915.6,4914.0,0.4408]
[1756058744989,0.1016,4915.0,4914.3,0.1016]
[1756058745189,5.183,4914.9,4914.3,0.1016]
[1756058747652,5.183,4914.9,4913.8,0.021]
[1756058747653,0.1991,4914.4,4913.8,0.021]
[1756058747802,3.618,4914.3,4913.8,0.1226]
[1756058751103,3.618,4914.3,4913.9,3.0]
[1756058754132,0.1016,4914.5,4913.9,4.87864398]
[1756058754308,3.617,4914.4,4913.9,5.34554398]
[1756058754506,3.617,4914.3,4913.9,5.34554398]
[1756058755751,3.617,4914.3,4913.8,15.34463979]
[1756058755752,0.1715,4914.0,4913.8,0.1226]
[1756058755907,0.4714,4913.9,4913.8,0.021]
[1756058756108,2.2099,4913.9,4913.8,0.021]
[1756058756660,1.7385,4913.9,4913.8,0.021]
[1756058756959,2.2069,4913.9,4913.8,0.021]
[1756058757624,1.7385,4913.9,4913.8,0.021]
[1756058761751,2.28421,4913.9,4913.8,0.021]
[1756058761948,0.1016,4914.2,4913.8,18.53573979]
[1756058762119,3.616,4914.4,4913.9,0.4669]
[1756058762322,3.616,4914.4,4914.3,0.2927]
[1756058762713,3.616,4914.4,4914.3,0.7596]
[1756058762933,1.6656,4915.8,4914.3,1.5212]
[1756058763243,3.616,4915.7,4915.4,3.0]
[1756058763439,3.616,4915.7,4915.6,0.2927]
[1756058763644,3.616,4915.7,4915.6,0.7596]
[1756058764144,3.616,4916.0,4915.1,1.1269]
[1756058764330,0.002,4916.3,4915.9,0.2927]
[1756058764534,3.615,4916.2,4915.9,0.2927]
[1756058764924,3.615,4916.2,4915.5,3.4669]
[1756058765453,3.615,4916.2,4915.1,0.66]
[1756058766034,3.615,4916.2,4915.3,3.0]
[1756058766251,3.615,4916.1,4915.4,1.1269]
[1756058767161,3.615,4916.1,4915.8,0.02]
[1756058767927,0.002,4916.3,4915.8,0.02]
[1756058767928,0.002,4916.3,4916.0,0.2927]
[1756058768127,3.614,4916.2,4916.0,0.2927]
[1756058768429,3.614,4916.2,4915.8,15.24203979]
[1756058768430,3.614,4916.2,4915.8,0.02]
[1756058769768,0.1715,4915.9,4915.8,0.02]
[1756058770275,3.614,4916.2,4915.8,0.02]
[1756058770628,0.1715,4915.9,4915.8,0.02]
[1756058770830,4.0069,4916.2,4915.8,0.02]
[1756058771078,1.566,4916.3,4915.8,3.3127]
[1756058771230,3.614,4916.1,4915.9,1.85347398]
[1756058771430,3.614,4916.1,4916.0,3.7596]
[1756058772657,3.614,4916.1,4916.0,4.4196]
[1756058774178,0.002,4916.3,4916.1,0.66]
[1756058774343,0.002,4916.3,4916.2,0.9527]
[1756058774543,0.002,4916.3,4916.2,5.0662174]
[1756058774740,0.002,4916.7,4916.3,0.66]
[1756058774994,0.002,4916.7,4916.6,18.51473979]
[1756058775287,0.002,4916.7,4916.6,18.61633979]
[1756058775500,0.002,4916.7,4916.6,19.74323979]
[1756058775782,0.002,4916.7,4916.6,20.48521157]
[1756058776009,0.002,4916.7,4916.6,24.09721157]
[1756058777396,0.002,4916.7,4916.6,20.48521157]
[1756058777598,0.002,4916.7,4916.6,24.09721157]
[1756058777974,0.002,4916.7,4916.6,20.48521157]
[1756058778174,0.002,4916.7,4916.6,24.09721157]
[1756058778700,0.002,4916.7,4916.6,24.17866557]
[1756058779104,0.3761,4919.4,4916.7,3.66]
[1756058779281,3.611,4918.5,4917.1,0.9527]
[1756058779480,3.611,4918.5,4917.1,7.6653]
[1756058779685,3.611,4918.5,4917.1,8.1322]
[1756058779997,3.611,4918.5,4917.1,4.5212]
[1756058783097,3.611,4918.5,4917.1,4.7727]
[1756058783291,3.611,4918.5,4917.1,5.4193174]
[1756058783910,0.02,4918.8,4917.2,3.66]
[1756058784211,0.02,4918.8,4917.8,3.66]
[1756058784709,0.3012,4917.9,4917.8,3.66]
[1756058785076,0.02,4918.8,4917.8,4.4105]
[1756058785277,0.02,4918.8,4918.5,3.66]
[1756058785906,0.02,4918.8,4918.0,0.66]
[1756058785907,0.3012,4918.6,4918.0,0.66]
[1756058787279,0.02,4918.8,4918.0,0.66]
[1756058787682,0.02,4918.8,4917.9,3.0]
[1756058787683,0.02,4918.8,4918.2,0.66]
[1756058788001,0.02,4918.8,4918.5,3.66]
[1756058788810,0.02,4918.8,4918.4,0.66]
[1756058789312,0.099,4918.5,4917.7,3.0]
[1756058789690,1.563,4918.5,4917.8,0.66]
[1756058790703,1.563,4918.5,4917.7,3.0]
[1756058791037,1.563,4918.5,4917.4,0.66]
[1756058791832,0.0485,4917.5,4916.7,0.4637]
[1756058792840,0.0485,4917.5,4916.8,0.68]
[1756058793331,3.606,4918.2,4916.8,0.68]
[1756058793529,3.606,4918.2,4917.3,3.0]
[1756058794026,0.1016,4918.1,4917.4,0.1016]
[1756058794601,0.2696,4917.5,4917.4,0.1016]
[1756058795455,0.1016,4918.1,4917.4,0.1016]
[1756058796524,0.1016,4918.1,4917.4,3.1016]
[1756058796846,0.1016,4918.1,4917.5,0.66]
[1756058797142,3.606,4918.2,4917.8,0.1016]
[1756058797440,3.606,4918.2,4917.8,0.5653]
[1756058798023,3.606,4918.2,4917.8,0.1016]
[1756058798225,3.606,4918.2,4917.8,0.5653]
[1756058798425,3.606,4918.2,4917.9,1.1237]
[1756058798750,1.563,4918.5,4918.2,0.66]
[1756058798932,1.563,4918.5,4918.4,0.2868]
[1756058799108,1.563,4918.5,4918.4,0.3884]
[1756058799311,1.563,4918.5,4918.4,1.0484]
[1756058799510,1.563,4918.5,4918.4,1.5121]
[1756058800233,1.563,4919.2,4918.5,0.66]
[1756058800420,5.167,4919.2,4918.7,0.2868]
[1756058800613,5.167,4919.2,4918.7,1.0484]
[1756058800812,1.563,4919.2,4918.7,4.5121]
[1756058805787,0.002,4919.3,4918.7,8.1151]
[1756058806109,0.002,4919.3,4919.2,0.1016]
[1756058806437,0.002,4919.3,4919.2,1.5121]
[1756058806760,0.0505,4919.3,4919.2,0.1016]
[1756058809243,0.0505,4919.3,4918.6,0.66]
[1756058809449,0.0505,4919.3,4919.0,0.1016]
[1756058810158,3.601,4919.2,4919.0,0.1016]
[1756058810880,0.002,4919.3,4919.1,0.7505]
[1756058811343,0.002,4919.3,4919.1,0.2868]
[1756058811689,0.002,4919.3,4919.2,0.4637]
[1756058811873,0.002,4919.3,4919.2,6.34471398]
[1756058812072,0.002,4919.3,4919.2,6.44631398]
[1756058812693,0.002,4919.3,4919.2,10.04631398]
[1756058813261,0.02,4919.8,4919.3,3.66]
[1756058813462,0.02,4919.8,4919.7,19.19363979]
[1756058813684,0.02,4919.8,4919.7,20.62788897]
[1756058814107,0.54466099,4924.4,4919.7,20.62788897]
[1756058814108,2.166,4923.8,4919.8,3.66]
[1756058814308,1.563,4922.0,4920.7,0.9716]
[1756058814607,1.563,4922.0,4920.7,4.0732]
[1756058815010,1.563,4922.0,4920.7,4.85994]
[1756058815184,1.563,4922.0,4920.7,6.76935398]
[1756058816307,1.563,4922.0,4920.7,6.45141398]
[1756058816893,1.6646,4922.0,4920.7,6.45141398]
[1756058817976,1.8907,4922.0,4920.7,6.45141398]
[1756058818310,1.8907,4922.0,4920.7,5.98261398]
[1756058818519,1.8907,4922.0,4920.7,6.45141398]
[1756058818888,0.022,4921.8,4920.7,6.45141398]
[1756058821215,0.022,4921.8,4920.7,6.34981398]
[1756058821419,0.022,4921.8,4921.7,18.88203979]
[1756058821591,0.022,4921.8,4921.7,19.29523979]
[1756058822007,0.022,4921.8,4921.7,20.37438179]
[1756058822430,0.022,4921.8,4921.7,23.97138179]
[1756058822606,1.562,4923.0,4922.7,3.66]
[1756058822837,1.562,4923.0,4922.7,3.9716]
[1756058823001,1.562,4923.0,4922.7,3.7616]
[1756058823201,0.1216,4923.8,4922.7,3.7616]
[1756058823202,0.1216,4923.8,4922.7,16.22382398]
[1756058823397,0.17,4925.0,4924.7,15.88203979]
[1756058823599,0.17,4925.0,4924.7,18.88203979]
[1756058823797,0.17,4925.0,4924.7,3.66]
[1756058824124,0.17,4925.0,4924.7,4.269974]
[1756058824511,0.17,4925.0,4924.7,5.050374]
[1756058824701,0.02,4926.8,4924.8,3.66]
[1756058824904,0.02,4926.8,4925.7,19.19363979]
[1756058825114,0.02,4926.8,4925.8,3.66]
[1756058825303,0.02,4926.8,4926.7,19.19363979]
[1756058825619,1.582,4927.8,4926.8,3.66]
[1756058825837,0.02,4927.8,4927.7,0.9716]
[1756058826009,0.02,4927.8,4927.7,0.66]
[1756058826211,0.00096,4928.5,4927.7,0.66]
[1756058826212,0.00096,4928.5,4927.7,4.4404]
[1756058826410,0.00096,4928.5,4928.3,3.66]
[1756058826611,0.00096,4928.5,4928.4,0.9716]
[1756058827227,0.00096,4928.5,4928.4,4.4404]
[1756058827540,0.00096,4928.5,4928.4,0.66]
[1756058827699,0.09996,4928.5,4927.5,0.66]
[1756058828501,0.09996,4928.5,4927.5,0.76128816]
[1756058828701,0.00096,4928.5,4927.8,3.66]
[1756058828915,0.00096,4928.5,4927.9,0.4688]
[1756058829232,0.00096,4928.5,4928.0,0.66]
[1756058829440,0.00096,4928.5,4928.4,0.3116]
[1756058829821,0.00096,4928.5,4928.4,1.4404]
[1756058829996,0.00096,4928.5,4925.1,0.5]
[1756058829997,0.09996,4928.5,4927.4,3.74593562]
[1756058830203,0.09996,4928.5,4927.6,0.66]
[1756058830425,0.00096,4928.5,4927.7,0.4688]
[1756058830635,0.00096,4928.5,4926.7,0.609584]
[1756058830636,0.1007,4927.8,4926.7,0.609584]
[1756058831354,1.561,4928.4,4926.9,15.22203979]
[1756058831637,1.561,4928.4,4927.0,3.4688]
[1756058831838,1.561,4928.4,4926.7,0.609584]
[1756058832037,0.2661,4928.3,4926.7,0.609584]
[1756058832248,0.099,4926.8,4926.7,0.609584]
[1756058832440,0.099,4926.8,4926.2,0.15447223]
[1756058832739,0.00096,4928.5,4926.7,15.53363979]
[1756058832740,1.561,4927.8,4926.7,15.53363979]
[1756058832914,0.00096,4928.5,4926.8,5.68216398]
[1756058833252,0.00096,4928.5,4927.4,0.66]
[1756058833401,0.10256,4928.5,4927.8,0.1016]
[1756058834050,0.3103,4927.9,4927.8,0.1016]
[1756058834358,0.3655,4927.9,4927.8,0.1016]
[1756058834643,3.9555,4927.9,4925.5,15.22203979]
[1756058834935,0.1016,4927.0,4926.3,0.711447]
[1756058835230,1.56,4927.0,4926.3,0.1016]
[1756058835446,1.56,4927.0,4926.4,0.609782]
[1756058835801,1.56,4927.0,4925.4,0.4688]
[1756058836052,1.56,4927.0,4926.8,0.02]
[1756058836233,0.3078,4926.9,4926.8,0.02]
[1756058837954,1.81357638,4933.9,4926.8,0.02]
[1756058838132,0.02,4934.8,4926.8,0.02]
[1756058838133,15.22203979,4928.6,4926.8,0.02]
[1756058838318,11.54920398,4928.5,4926.8,0.02]
[1756058838662,5.15,4928.4,4926.8,0.02]
[1756058838862,3.59,4928.3,4926.8,0.02]
[1756058839156,3.59,4928.3,4928.1,0.52463955]
[1756058839365,3.59,4928.3,4928.1,0.69951941]
[1756058839656,1.1549204,4928.2,4928.0,1.04927911]
[1756058839867,1.56,4928.4,4928.0,1.04927911]
[1756058840017,1.56,4928.4,4928.1,0.69954293]
[1756058840218,1.56,4928.4,4928.2,0.69954293]
[1756058840415,1.56,4928.4,4928.2,1.04927911]
[1756058840653,1.06,4928.4,4928.3,1.89903882]
[1756058840948,1.06,4928.4,4926.8,1.76879853]
[1756058840949,1.56,4929.1,4928.4,0.66]
[1756058841164,1.56,4929.2,4929.0,0.69981709]
[1756058841343,1.56,4929.2,4928.9,1.04972563]
[1756058841658,1.56,4929.2,4928.8,0.70044636]
[1756058841950,1.56,4929.2,4926.9,0.609858]
[1756058841951,14.776495,4928.9,4926.9,0.609858]
[1756058842258,2.03134363,4929.1,4926.8,0.52]
[1756058842426,1.56,4929.2,4926.8,0.02]
[1756058842427,3.589,4929.0,4926.8,0.02]
[1756058842755,3.589,4929.0,4926.8,0.52]
[1756058843485,0.002,4928.9,4926.8,0.52]
[1756058843782,0.002,4928.9,4926.9,0.66]
[1756058844084,0.002,4928.9,4927.2,0.66]
[1756058844296,3.589,4928.8,4927.5,0.5]
[1756058844442,3.589,4928.8,4927.4,0.66]